[Event "98th Caplin Hastings Masters 2024-25"]
[Site "Hastings"]
[Date "2024.12.31"]
[Round "6.30"]
[White "Sasikumar, Srivathsan"]
[Black "Zhang, Junyi"]
[Result "1/2-1/2"]
[ECO "B45"]
[WhiteElo "1904"]
[BlackElo "2070"]
[Annotator "NA RC"]
[PlyCount "63"]
[EventDate "2024.12.23"]
[EventType "swiss"]
[EventCountry "ENG"]
[SourceTitle "playchess.com"]
[Source "ChessBase"]
[SourceQuality "1"]
[TimeControl "5400+30"]

1. e4 {[%emt 1:31:00]} c5 {[%emt 0:02:49]} 2. Nf3 {[%emt 0:00:00]} e6 {[%emt 0:00:02]} 3. d4 {[%emt 0:00:00]} cxd4 {[%emt 0:00:24]} 4. Nxd4 {[%emt 0:00:00]} Nf6 {[%emt 0:00:01]} 5. Nc3 {[%emt 0:00:00]} Nc6 {[%emt 0:00:31]} 6. Be3 {[%emt 0:00:00]} Bb4 {[%emt 0:00:29]} 7. Bd3 {[%emt 0:00:00]} d5 {[%emt 0:00:09]} 8. exd5 {[%emt 0:00:00]} Nxd5 {[%emt 0:01:51]} 9. Nxc6 {[%emt 0:04:00]} bxc6 {[%emt 0:02:14]} 10. Bd2 {[%emt 0:00:00]} O-O {[%emt 0:03:03]} 11. Nxd5 {[%emt 0:00:00] B45: Sicilian Four Knights.} Bxd2+ {[%emt 0:00:15]} 12. Qxd2 {[%emt 0:00:00]} cxd5 {[%emt 0:00:02]} 13. O-O {[%emt 0:00:00]} Qb6 {[%emt 0:01:21]} 14. c3 {[%emt 0:00:00]} Ba6 {[%emt 0:00:35]} 15. Bxa6 {[%emt 0:00:00]} Qxa6 {[%emt 0:00:14]} 16. f4 {[%emt 0:00:00]} Rab8 {[%emt 0:01:02]} 17. Kh1 {[%emt 0:00:00]} Qb6 {[%emt 0:04:15]} 18. Rab1 {[%emt 0:00:00]} Rfd8 {[%emt 0:00:29]} 19. f5 {[%emt 0:00:00]} exf5 {[%emt 0:00:07]} 20. Rxf5 {[%emt 0:00:00]} d4 {[%emt 0:00:23]} 21. cxd4 {[%emt 0:00:00]} Rxd4 {[%emt 0:00:03]} 22. Qe2 {[%emt 0:00:00]} g6 {[%emt 0:05:10]} 23. Rf3 {[%emt 0:00:00]} Rbd8 {[%emt 0:03:14]} 24. Rbf1 $11 {[%emt 0:00:00]} f5 {[%emt 0:00:34]} 25. Rb3 {[%emt 0:00:00]} Qc6 {[%emt 0:03:21]} 26. h3 {[%emt 0:00:00]} Re4 {[%emt 0:04:39]} 27. Qf2 {[%emt 0:00:00]} a5 {[%emt 0:00:26]} 28. Rc3 {[%emt 0:00:00]} Qd5 {[%emt 0:00:06]} 29. a3 {[%emt 0:00:00]} Qe6 {[%emt 0:09:30]} 30. Rfc1 {[%emt 0:01:13]} Re2 {[%emt 0:01:24]} 31. Qh4 {[%emt 0:01:01]} Qd5 {[%emt 0:02:27]} 32. Qxd8+ {[%emt 0:00:31]} 1/2-1/2

[Event "98th Caplin Hastings Masters 2024-25"]
[Site "Hastings"]
[Date "2024.12.31"]
[Round "6.31"]
[White "Kim, Yegeon"]
[Black "Schimnatkowski, Lukas"]
[Result "1/2-1/2"]
[ECO "B51"]
[WhiteElo "1697"]
[BlackElo "2221"]
[Annotator "NA"]
[PlyCount "122"]
[EventDate "2024.12.23"]
[EventType "swiss"]
[EventCountry "ENG"]
[SourceTitle "playchess.com"]
[Source "ChessBase"]
[SourceQuality "1"]
[TimeControl "5400+30"]

1. e4 {[%emt 0:00:04]} c5 {[%emt 0:00:09]} 2. Nf3 {[%emt 0:00:06]} d6 {[%emt 0:00:13]} 3. Bb5+ {[%emt 0:00:08]} Nd7 {[%emt 0:00:05]} 4. c3 {[%emt 0:00:06]} a6 {[%emt 0:00:35]} 5. Ba4 {[%emt 0:00:05]} Ngf6 {[%emt 0:00:33]} 6. Qe2 {[%emt 0:00:05]} e6 {[%emt 0:02:20]} 7. O-O {[%emt 0:01:53]} Be7 {[%emt 0:01:16] B51: Sicilian: Moscow Variation (3 Bb5+) without 3...Bd7.} 8. d4 {[%emt 0:01:06]} b5 {[%emt 0:02:46]} 9. Bc2 {[%emt 0:00:17]} Bb7 {[%emt 0:00:29]} 10. Rd1 {[%emt 0:01:09]} Qc7 {[%emt 0:07:43]} 11. Bd3 {[%emt 0:00:10]} O-O {[%emt 0:06:13]} 12. Nbd2 {[%emt 0:01:01]} Rfd8 {[%emt 0:06:14]} 13. a4 {[%emt 0:04:31]} c4 {[%emt 0:09:05]} 14. Bc2 {[%emt 0:00:29]} e5 {[%emt 0:00:19]} 15. Nf1 {[%emt 0:05:44]} Bf8 {[%emt 0:03:07]} 16. Ng3 {[%emt 0:21:54]} Re8 {[%emt 0:03:45]} 17. dxe5 {[%emt 0:08:18]} dxe5 {[%emt 0:01:40]} 18. Nd2 {[%emt 0:12:55]} Nc5 {[%emt 0:04:59]} 19. Ndf1 {[%emt 0:05:26]} Qc6 {[%emt 0:02:56]} 20. axb5 {[%emt 0:18:55]} axb5 {[%emt 0:01:37]} 21. Rxa8 {[%emt 0:00:06]} Rxa8 {[%emt 0:00:20]} 22. f3 {[%emt 0:00:38]} Ne6 {[%emt 0:04:15]} 23. Kh1 $15 {[%emt 0:08:05]} g6 {[%emt 0:02:07]} 24. Qe1 {[%emt 0:02:14]} Qb6 {[%emt 0:16:28]} 25. Be3 {[%emt 0:02:08]} Bc5 {[%emt 0:03:13]} 26. b3 {[%emt 0:02:27]} Ra2 {[%emt 0:04:32]} 27. Rc1 {[%emt 0:01:25]} Ba6 {[%emt 0:04:33]} 28. bxc4 {[%emt 0:00:47]} bxc4 {[%emt 0:00:13]} 29. Rb1 {[%emt 0:01:09]} Qa7 {[%emt 0:00:35]} 30. Qc1 {[%emt 0:00:49]} Bxe3 {[%emt 0:05:57]} 31. Qxe3 {[%emt 0:00:43]} Qc7 {[%emt 0:01:03]} 32. Bd1 {[%emt 0:00:47]} Kg7 {[%emt 0:01:15]} 33. Qc1 {[%emt 0:00:43]} Nf4 {[%emt 0:00:30]} 34. Bc2 {[%emt 0:00:35]} Qa5 {[%emt 0:01:12]} 35. Qd2 {[%emt 0:00:29]} h5 {[%emt 0:02:10]} 36. Ne3 {[%emt 0:00:23]} h4 {[%emt 0:00:30]} 37. Ngf1 {[%emt 0:00:29]} Qc7 {[%emt 0:01:59]} 38. Qc1 {[%emt 0:00:33]} Bc8 {[%emt 0:01:10]} 39. Ra1 {[%emt 0:00:30]} Rxa1 {[%emt 0:00:30]} 40. Qxa1 {[%emt 0:00:01]} Be6 {[%emt 0:00:13]} 41. Qe1 {[%emt 0:00:36]} Qa5 {[%emt 0:00:35]} 42. Nd1 {[%emt 0:00:58]} g5 {[%emt 0:01:12]} 43. Nfe3 {[%emt 0:00:22]} Qd8 {[%emt 0:00:35]} 44. Qf1 {[%emt 0:00:28]} Qd2 {[%emt 0:00:21]} 45. Qf2 {[%emt 0:00:34]} Qxf2 {[%emt 0:00:28]} 46. Nxf2 {[%emt 0:00:05]} Ne2 {[%emt 0:00:15]} 47. Nfd1 {[%emt 0:00:29]} Nd7 {[%emt 0:00:48]} 48. Bb1 {[%emt 0:00:40]} Nb6 {[%emt 0:00:28]} 49. Ba2 {[%emt 0:00:16]} Kf8 {[%emt 0:00:28]} 50. Nb2 {[%emt 0:00:34]} Nxc3 {[%emt 0:00:38]} 51. Bxc4 {[%emt 0:00:25]} Nxc4 {[%emt 0:00:32]} 52. Nbxc4 {[%emt 0:00:04]} Bxc4 {[%emt 0:00:09]} 53. Nxc4 {[%emt 0:00:12]} f6 {[%emt 0:00:06]} 54. Kg1 {[%emt 0:00:07]} Ke7 {[%emt 0:00:31]} 55. Kf2 {[%emt 0:00:19]} Ke6 {[%emt 0:00:20]} 56. Ne3 {[%emt 0:00:35]} Nb5 {[%emt 0:00:24]} 57. g3 {[%emt 0:01:26]} hxg3+ {[%emt 0:00:20]} 58. hxg3 {[%emt 0:01:57]} Nd4 {[%emt 0:00:15]} 59. Ng4 {[%emt 0:00:00]} Nc2 {[%emt 0:00:20]} 60. Ke2 {[%emt 0:00:00]} Kf7 {[%emt 0:00:24]} 61. Kd2 {[%emt 0:00:00]} Nd4 {[%emt 0:02:21]} 1/2-1/2

[Event "98th Caplin Hastings Masters 2024-25"]
[Site "Hastings"]
[Date "2024.12.31"]
[Round "6.32"]
[White "Vaidyanathan, Adithya"]
[Black "Golding, James"]
[Result "0-1"]
[ECO "D36"]
[WhiteElo "1904"]
[BlackElo "2203"]
[Annotator "TA"]
[PlyCount "68"]
[EventDate "2024.12.23"]
[EventType "swiss"]
[EventCountry "ENG"]
[SourceTitle "playchess.com"]
[Source "ChessBase"]
[SourceQuality "1"]
[TimeControl "5400+30"]

{[%evp 20,68,32,15,25,15,85,52,94,94,140,84,79,-71,-68,-60,-81,-55,-39,-136,-146,-196,-214,-309,-263,-307,-325,-302,-299,-379,-394,-387,-378,-379,-371,-402,-388,-469,-467,-607,-613,-748,-755,-731,-737,-838,-832,-1157,-1055,-2207,-2092]} 1. d4 {[%emt 0:00:03]} d5 {[%emt 0:00:05]} 2. Nf3 {[%emt 0:00:07]} Nf6 {[%emt 0:00:05]} 3. c4 {[%emt 0:00:05]} e6 {[%emt 0:00:08]} 4. Nc3 {[%emt 0:00:07]} Be7 {[%emt 0:00:10]} 5. Bg5 {[%emt 0:00:07]} O-O {[%emt 0:00:29]} 6. e3 {[%emt 0:00:05]} Nbd7 {[%emt 0:02:50]} 7. cxd5 {[%emt 0:00:15]} exd5 {[%emt 0:00:07]} 8. Bd3 {[%emt 0:00:08]} c6 {[%emt 0:00:21]} 9. O-O {[%emt 0:00:07]} Re8 {[%emt 0:00:11]} 10. Qc2 {[%emt 0:00:07]} Nf8 {[%emt 0:02:11]} 11. Ne5 {[%emt 0:01:34]} g6 {[%emt 0:02:07]} 12. f4 {[%emt 0:01:11] With the idea f5.} Ne6 {[%emt 0:07:29]} (12... Ng4 $11 {remains equal.} 13. Bxe7 Rxe7) 13. Bh4 {[%emt 0:06:44]} Ng7 {[%emt 0:10:35]} 14. f5 $1 {[%emt 0:19:03]} Nd7 {[%emt 0:03:49]} (14... Nxf5 $142 15. Bxf5 gxf5 (15... Bxf5 16. Rxf5 gxf5 17. Qxf5 $16)) 15. fxg6 {[%emt 0:01:47]} (15. Ng4 $142 $1 {[%cal Rg4h6] aiming for Nh6+.} Bxh4 16. Nh6+ Kf8 17. fxg6) 15... Nxe5 $16 {[%emt 0:03:35]} 16. gxf7+ {[%emt 0:02:20]} (16. gxh7+ $16 Kh8 17. Bxe7 (17. dxe5 $2 Bxh4 18. Rxf7 Be6 $17) 17... Qxe7 18. dxe5) 16... Nxf7 $17 {[%emt 0:00:10]} 17. Bxh7+ {[%emt 0:00:06]} Kh8 {[%emt 0:00:05]} 18. Rxf7 {[%emt 0:03:47][%cal Oc2g6] Intending Qg6! and mate.} Bxh4 {[%emt 0:00:07]} 19. Qg6 {[%emt 0:00:31] Against Qg5} (19. Raf1 $1 $15 Bg4 (19... Rxe3 20. Rf8+) (19... Be6 20. Rxg7 Bg5 21. Rxb7 $16) 20. Qg6 (20. Rxb7 $2 Qg5 $19)) 19... Qg5 $1 {[%emt 0:00:05][%cal Oc8g4]} 20. Raf1 {[%emt 1:02:16] [#]} (20. Rxg7 $2 Qxe3+ 21. Kh1 Qe1+ 22. Rxe1 Rxe1#) (20. Kh1 $17) 20... Be6 $1 $19 {[%emt 0:14:46]} ({Worse is} 20... Qxe3+ 21. Kh1) (20... Qxg6 21. Bxg6 Be6 (21... Rxe3 22. Rf8#) 22. Rxb7 $17) 21. Rxb7 {[%emt 0:00:00] [#]} (21. R7f4 $142) 21... Rf8 $1 {[%emt 0:00:41]} 22. Rf4 {[%emt 0:00:00] [#]} (22. Rxg7 $2 {leads to mate.} Qxe3+) (22. Rxf8+ Rxf8 23. Nd1 Bg4 24. Qxg5 Bxg5 $19) (22. Nd1 Bg4) 22... Qxg6 $1 {[%emt 0:20:55]} 23. Bxg6 {[%emt 0:00:00]} Bg5 {[%emt 0:00:06] This pair of bishops is nice.} 24. Rf3 {[%emt 0:00:00]} Rxf3 {[%emt 0:00:57]} 25. gxf3 {[%emt 0:00:00]} Bxe3+ {[%emt 0:00:13]} 26. Kg2 {[%emt 0:00:00]} Bxd4 {[%emt 0:00:12]} 27. Ne2 {[%emt 0:00:00]} Be3 {[%emt 0:10:32]} 28. h4 {[%emt 0:00:00]} d4 {[%emt 0:08:09]} 29. a3 {[%emt 0:00:00]} Rd8 {[%emt 0:03:37]} 30. h5 {[%emt 0:00:00]} d3 {[%emt 0:00:57]} 31. Nc3 {[%emt 0:00:00]} d2 {[%emt 0:00:51]} 32. Nd1 {[%emt 0:00:00]} Bb6 {[%emt 0:01:17]} 33. h6 {[%emt 0:00:00]} Nf5 {[%emt 0:00:32] aiming for ...Nh4+.} 34. a4 {[%emt 0:00:00]} Nh4+ {[%emt 0:00:33]} 0-1

[Event "98th Caplin Hastings Masters 2024-25"]
[Site "Hastings"]
[Date "2024.12.31"]
[Round "6.33"]
[White "Keely, Leo A"]
[Black "Patel, Zain"]
[Result "0-1"]
[ECO "C60"]
[WhiteElo "1899"]
[BlackElo "2099"]
[Annotator "NA RC"]
[PlyCount "76"]
[EventDate "2024.12.23"]
[EventType "swiss"]
[EventCountry "ENG"]
[SourceTitle "playchess.com"]
[Source "ChessBase"]
[SourceQuality "1"]
[TimeControl "5400+30"]

1. e4 {[%emt 0:00:02]} e5 {[%emt 0:00:40]} 2. Nf3 {[%emt 0:00:10]} Nc6 {[%emt 0:00:08]} 3. Bb5 {[%emt 0:00:25]} Nge7 {[%emt 0:01:40]} 4. O-O {[%emt 0:03:41]} Ng6 {[%emt 0:00:45]} 5. d4 {[%emt 0:02:08]} exd4 {[%emt 0:01:15]} 6. Nxd4 {[%emt 0:00:52]} Bc5 {[%emt 0:00:25]} 7. Nf5 {[%emt 0:07:55] C60: Ruy Lopez: Unusual Black 3rd moves and 3...g6.} O-O {[%emt 0:04:16]} 8. Bxc6 {[%emt 0:09:15]} dxc6 {[%emt 0:02:34]} 9. Qxd8 {[%emt 0:01:08]} Rxd8 {[%emt 0:00:07]} 10. Nc3 {[%emt 0:04:40]} Be6 {[%emt 0:02:17]} 11. Be3 {[%emt 0:01:12]} Bf8 {[%emt 0:00:52]} 12. Rfd1 {[%emt 0:01:33]} f6 {[%emt 0:04:09]} 13. Nd4 {[%emt 0:06:13]} Bf7 {[%emt 0:02:41]} 14. a3 {[%emt 0:02:26]} Ne5 {[%emt 0:03:19]} 15. Bf4 {[%emt 0:04:35]} Bh5 {[%emt 0:01:53]} 16. Nde2 {[%emt 0:06:21]} Bc5 {[%emt 0:10:46]} 17. h3 {[%emt 0:02:39]} Re8 {[%emt 0:03:43]} 18. g4 {[%emt 0:04:31]} Bg6 {[%emt 0:01:30]} 19. Ng3 {[%emt 0:02:00]} Rad8 {[%emt 0:09:44]} 20. Kg2 {[%emt 0:02:10]} Bf7 $11 {[%emt 0:04:55]} 21. Nf5 {[%emt 0:00:40]} Be6 {[%emt 0:02:23]} 22. g5 {[%emt 0:03:00]} Rxd1 {[%emt 0:06:15]} 23. Rxd1 {[%emt 0:00:26]} Ng6 {[%emt 0:02:15]} 24. Bxc7 {[%emt 0:01:28]} fxg5 {[%emt 0:00:51]} 25. Nd4 {[%emt 0:06:37]} Nh4+ {[%emt 0:03:31]} 26. Kg3 {[%emt 0:00:51]} Bf7 {[%emt 0:05:04]} 27. Nf3 {[%emt 0:04:30]} Nxf3 {[%emt 0:01:10]} 28. Rd8 {[%emt 0:00:56]} Rxd8 {[%emt 0:01:45]} 29. Bxd8 {[%emt 0:00:06]} Nd4 {[%emt 0:01:00]} 30. Bxg5 {[%emt 0:00:27]} Nxc2 {[%emt 0:00:13]} 31. f4 {[%emt 0:02:56]} Bd4 {[%emt 0:00:24]} 32. Be7 {[%emt 0:01:35]} c5 {[%emt 0:00:54]} 33. Nb5 {[%emt 0:00:41]} Bxb2 {[%emt 0:00:34]} 34. Bxc5 {[%emt 0:00:12]} a6 {[%emt 0:00:05]} 35. Nd6 {[%emt 0:00:23]} b5 {[%emt 0:00:09]} 36. e5 {[%emt 0:01:14]} Bxa3 {[%emt 0:00:15]} 37. Bxa3 {[%emt 0:00:08]} Nxa3 {[%emt 0:00:04]} 38. f5 {[%emt 0:00:08]} Nc4 {[%emt 0:00:05]} 0-1

[Event "98th Caplin Hastings Masters 2024-25"]
[Site "Hastings"]
[Date "2024.12.31"]
[Round "6.34"]
[White "Buckland, Louis"]
[Black "Bharat Kumar, Balahari"]
[Result "0-1"]
[ECO "E12"]
[WhiteElo "1856"]
[BlackElo "2063"]
[Annotator "NA"]
[PlyCount "140"]
[EventDate "2024.12.23"]
[EventType "swiss"]
[EventCountry "ENG"]
[SourceTitle "playchess.com"]
[Source "ChessBase"]
[SourceQuality "1"]
[TimeControl "5400+30"]

1. d4 {[%emt 0:00:02]} b6 {[%emt 0:00:05]} 2. c4 {[%emt 0:01:07]} Bb7 {[%emt 0:00:07]} 3. Nc3 {[%emt 0:00:18]} e6 {[%emt 0:00:07]} 4. a3 {[%emt 0:00:05]} d5 {[%emt 0:07:45]} 5. cxd5 {[%emt 0:01:48]} exd5 {[%emt 0:00:25]} 6. Nf3 {[%emt 0:00:51]} Nf6 {[%emt 0:01:16]} 7. Bg5 {[%emt 0:03:24]} Be7 {[%emt 0:03:32]} 8. e3 {[%emt 0:02:53]} O-O {[%emt 0:00:38]} 9. Bd3 {[%emt 0:01:01]} Nbd7 {[%emt 0:02:17]} 10. O-O {[%emt 0:03:40]} h6 {[%emt 0:01:15]} 11. Bh4 {[%emt 0:00:51]} c5 {[%emt 0:01:14]} 12. Rc1 {[%emt 0:05:34]} a6 {[%emt 0:01:24]} 13. Bb1 {[%emt 0:03:26]} Re8 {[%emt 0:06:38]} 14. Qd3 {[%emt 0:03:13]} c4 {[%emt 0:01:40]} 15. Qc2 {[%emt 0:03:54]} b5 {[%emt 0:02:19]} 16. Rcd1 {[%emt 0:01:49]} Qb6 {[%emt 0:04:21]} 17. Ne5 {[%emt 0:00:58]} Nf8 {[%emt 0:00:46]} 18. f3 {[%emt 0:04:15]} a5 {[%emt 0:02:10]} 19. e4 {[%emt 0:03:09]} b4 {[%emt 0:27:22]} 20. axb4 {[%emt 0:22:13]} axb4 {[%emt 0:00:58]} 21. Ne2 {[%emt 0:01:17]} Ba6 {[%emt 0:11:12]} 22. Rfe1 {[%emt 0:03:24]} b3 {[%emt 0:03:21]} 23. Qd2 {[%emt 0:01:15]} Bb4 {[%emt 0:00:38]} 24. Nc3 {[%emt 0:00:50]} Bxc3 {[%emt 0:02:17]} 25. bxc3 {[%emt 0:01:40]} Rxe5 {[%emt 0:00:19]} 26. Bxf6 {[%emt 0:00:29]} gxf6 {[%emt 0:00:36]} 27. Qxh6 {[%emt 0:00:42]} Rae8 {[%emt 0:13:43]} 28. Re3 {[%emt 0:14:31]} Rg5 {[%emt 0:02:35]} 29. f4 {[%emt 0:02:46]} Rg6 {[%emt 0:00:08]} 30. Qh4 {[%emt 0:01:18]} f5 {[%emt 0:02:04]} 31. e5 {[%emt 0:00:02]} Rh6 {[%emt 0:01:42]} 32. Rg3+ {[%emt 0:00:58]} Kh8 {[%emt 0:00:12]} 33. Qg5 {[%emt 0:01:56]} Qg6 {[%emt 0:00:05]} 34. Bxf5 {[%emt 0:02:22]} Qxg5 {[%emt 0:00:07]} 35. fxg5 {[%emt 0:01:12]} Rb6 {[%emt 0:00:25]} 36. h4 {[%emt 0:00:37]} Bc8 {[%emt 0:00:33]} 37. Bb1 {[%emt 0:00:36]} Ng6 {[%emt 0:01:02]} 38. Rf1 {[%emt 0:00:13]} Kg8 {[%emt 0:01:15]} 39. h5 {[%emt 0:00:15]} Nf8 {[%emt 0:01:27]} 40. Rf6 {[%emt 0:02:23]} Rbe6 {[%emt 0:00:00]} 41. h6 {[%emt 0:01:19]} Ng6 {[%emt 0:00:22]} 42. h7+ {[%emt 0:01:51]} Kg7 {[%emt 0:00:22]} 43. Rgf3 {[%emt 0:01:44]} Rxf6 {[%emt 0:00:38]} 44. Rxf6 {[%emt 0:00:29]} Nh8 {[%emt 0:00:33]} 45. Rd6 {[%emt 0:01:41]} Be6 {[%emt 0:00:24]} 46. Kf2 {[%emt 0:00:15]} Ng6 {[%emt 0:00:28]} 47. g4 {[%emt 0:01:51]} Kxh7 {[%emt 0:00:10]} 48. Bf5 {[%emt 0:01:15]} Kg7 {[%emt 0:00:30]} 49. Rb6 {[%emt 0:00:15]} Nh4 {[%emt 0:00:49]} 50. g6 {[%emt 0:00:55]} Nxf5 {[%emt 0:00:40]} 51. gxf5 {[%emt 0:00:03]} Bxf5 {[%emt 0:00:23]} 52. gxf7 {[%emt 0:00:03]} Re6 {[%emt 0:00:39]} 53. Rb7 {[%emt 0:01:23]} Kf8 {[%emt 0:00:21]} 54. Ke3 {[%emt 0:00:09]} Re7 {[%emt 0:00:32]} 55. Rb8+ {[%emt 0:00:56]} Kxf7 {[%emt 0:00:07]} 56. Kf4 {[%emt 0:00:01]} Be6 {[%emt 0:00:29]} 57. Kg5 {[%emt 0:00:25]} Kg7 {[%emt 0:00:42]} 58. Rb6 {[%emt 0:00:17]} Bf7 {[%emt 0:00:36]} 59. Rb5 {[%emt 0:01:01]} Bg6 {[%emt 0:00:40]} 60. Rb6 {[%emt 0:00:07]} Be4 {[%emt 0:00:15]} 61. Rb8 {[%emt 0:00:57]} Kf7 {[%emt 0:00:37]} 62. Rb6 {[%emt 0:00:16]} Re6 {[%emt 0:00:33]} 63. Rb7+ {[%emt 0:00:06]} Ke8 {[%emt 0:00:16]} 64. Kf4 {[%emt 0:00:37]} Rg6 {[%emt 0:00:21]} 65. Rb5 {[%emt 0:01:08]} Kd7 {[%emt 0:00:31]} 66. Rb7+ {[%emt 0:00:25]} Kc6 {[%emt 0:00:11]} 67. Rb8 {[%emt 0:00:39]} Kc7 {[%emt 0:00:06]} 68. Rb5 {[%emt 0:00:34]} Rb6 {[%emt 0:00:17]} 69. Rxb6 {[%emt 0:00:30]} Kxb6 {[%emt 0:00:06]} 70. e6 {[%emt 0:00:07]} Kc7 {[%emt 0:00:15]} 0-1

[Event "98th Caplin Hastings Masters 2024-25"]
[Site "Hastings"]
[Date "2024.12.31"]
[Round "6.35"]
[White "Gorainow, Nikita"]
[Black "Kennedy, Craig"]
[Result "0-1"]
[ECO "C10"]
[WhiteElo "2045"]
[BlackElo "1851"]
[Annotator "TA"]
[PlyCount "124"]
[EventDate "2024.12.23"]
[EventType "swiss"]
[EventCountry "ENG"]
[SourceTitle "playchess.com"]
[Source "ChessBase"]
[SourceQuality "1"]
[TimeControl "5400+30"]

{[%evp 15,124,41,37,-143,-127,-126,-133,-137,-140,-137,-130,-123,-127,-141,-105,-127,-113,-132,-108,-111,-82,-118,-116,-165,-156,-276,-279,-261,-274,-262,-207,-187,-177,-191,-208,-215,-218,-213,-199,-195,-199,-184,-195,-236,-135,-134,-136,-317,-316,-350,-336,-375,-364,-418,-242,-242,-218,-230,-241,-216,-168,-181,-152,-191,-181,-256,-256,-253,-202,-263,-260,-231,-240,-380,-380,-385,-382,-584,-568,-522,-397,-395,-389,-380,-376,-324,0,-812,-686,-667,-664,-653,-639,-530,-333,-1495,-1220,-1856,-1475,-5651,-6545,-6095,-6203,-6207,-6207,-29981,-29982,-29979,-29980,-29990,-29991]} 1. e4 {[%emt 0:01:00]} e6 {[%emt 0:00:05]} 2. d4 {[%emt 0:00:29]} d5 {[%emt 0:00:04]} 3. Nc3 {[%emt 0:00:10]} dxe4 {[%emt 0:00:05]} 4. Nxe4 {[%emt 0:00:40]} Bd7 {[%emt 0:00:05]} 5. Nf3 {[%emt 0:06:21]} Bc6 {[%emt 0:00:06]} 6. Bd3 {[%emt 0:00:16]} Nd7 {[%emt 0:00:05]} 7. O-O {[%emt 0:00:53]} Ngf6 {[%emt 0:00:06]} 8. Ng3 {[%emt 0:00:45]} Be7 {[%emt 0:02:05]} 9. Ne5 $2 {[%emt 0:12:55]} (9. Qe2 $14 {stays ahead.}) 9... Nxe5 $17 {[%emt 0:00:12]} 10. dxe5 {[%emt 0:00:03] [#]} Qd5 $1 {[%emt 0:00:09][%csl Gc6,LRe5,LRg2][%cal Rd5g2]} 11. f3 {[%emt 0:03:31]} (11. Qf3 Qxe5) 11... Qxe5 {[%emt 0:00:45]} 12. Re1 {[%emt 0:00:20]} Qd6 {[%emt 0:09:28] Black is more active.} 13. Be3 {[%emt 0:12:07]} O-O-O {[%emt 0:04:54]} 14. Qd2 {[%emt 0:10:03]} Kb8 {[%emt 0:03:12]} 15. Qf2 {[%emt 0:04:49]} b6 {[%emt 0:01:37]} 16. Rad1 {[%emt 0:00:53]} Qb4 {[%emt 0:04:41]} 17. c3 {[%emt 0:02:00]} Qh4 {[%emt 0:00:17]} 18. Bd4 {[%emt 0:03:08]} Bd6 {[%emt 0:02:15]} 19. b4 {[%emt 0:14:13]} (19. Nf1 $17 Qxf2+ 20. Bxf2) 19... Nh5 $19 {[%emt 0:05:19]} 20. Be5 {[%emt 0:00:50]} (20. Nf1 $17 Qxf2+ 21. Bxf2) 20... Bxe5 {[%emt 0:01:03]} 21. Rxe5 {[%emt 0:00:20]} Nf4 {[%emt 0:01:31]} 22. Qc2 {[%emt 0:05:32]} Rxd3 {[%emt 0:02:47]} 23. Rxd3 {[%emt 0:00:13]} Nxd3 {[%emt 0:00:09]} 24. Qxd3 {[%emt 0:00:05]} Rd8 {[%emt 0:04:16]} 25. Qc2 {[%emt 0:01:35]} Qf4 {[%emt 0:00:59]} 26. Re2 {[%emt 0:00:52]} Bb5 {[%emt 0:03:05]} 27. Re4 {[%emt 0:04:52]} Qd2 {[%emt 0:00:28]} 28. Qxd2 {[%emt 0:03:34]} Rxd2 {[%emt 0:00:08]} 29. Rd4 {[%emt 0:01:40]} Rxd4 {[%emt 0:03:45]} (29... Rxa2 30. c4 Ba6 31. Nh5) (29... Rc2 $19 30. h4 Rc1+ (30... Rxa2 31. Rd8+ Kb7 32. Ne4 $17) (30... Rxc3 $2 31. Rd8+ Kb7 32. h5 $19) 31. Kh2 Rxc3 32. Rd8+ Kb7) 30. cxd4 {[%emt 0:00:05][%mdl 4096] Endgame KB-KN. Black is a pawn up.} Kb7 {[%emt 0:00:16]} 31. Kf2 $2 {[%emt 0:00:07]} (31. Ne4 $17) 31... Kc6 {[%emt 0:52:03]} 32. Ke3 {[%emt 0:05:02]} Kd5 {[%emt 0:00:00]} 33. Ne4 {[%emt 0:01:03]} h6 {[%emt 0:00:00]} 34. a4 {[%emt 0:01:11]} Bf1 {[%emt 0:00:00]} (34... Bxa4 $142 35. Nc3+ Kc4 36. Nxa4 Kb3 (36... Kxb4 $2 37. Nb2 $19) 37. Nxb6 cxb6 (37... axb6 $2 38. b5 $19)) 35. g3 {[%emt 0:00:13]} Ba6 {[%emt 0:00:00]} 36. b5 {[%emt 0:00:21]} Bb7 {[%emt 0:00:00]} 37. Kd3 {[%emt 0:00:13]} c6 {[%emt 0:00:00]} 38. Nc3+ {[%emt 0:01:02]} Kd6 {[%emt 0:00:00]} 39. Ne4+ {[%emt 0:00:39]} Kd7 {[%emt 0:00:00]} 40. Nd2 {[%emt 0:01:13]} (40. Kc3 {was necessary.}) 40... cxb5 {[%emt 0:00:00]} 41. axb5 {[%emt 0:00:09]} a5 {[%emt 0:00:00]} 42. f4 {[%emt 0:02:12]} Bd5 {[%emt 0:00:00]} 43. Kc3 {[%emt 0:00:28]} Kd6 {[%emt 0:00:00]} 44. Kb2 {[%emt 0:02:07]} (44. Nf1 {is the only way for White.}) 44... f6 {[%emt 0:00:00]} 45. Kc3 {[%emt 0:00:42]} g6 {[%emt 0:00:00]} 46. h4 {[%emt 0:00:48]} (46. Nf1 $142) 46... h5 {[%emt 0:00:00]} 47. Kb2 {[%emt 0:00:51]} Bb7 {[%emt 0:00:00]} 48. Nc4+ {[%emt 0:00:37] [#]} Kc7 $1 {[%emt 0:00:00]} ({Inferior is} 48... Kd5 49. Kc3 $16) 49. Nd2 {[%emt 0:01:07]} Bd5 {[%emt 0:00:00]} 50. Kc3 {[%emt 0:00:06]} Kd6 $2 {[%emt 0:00:00]} (50... Kd7 51. Nf1 Kd6) 51. Kb2 {[%emt 0:00:20]} e5 {[%emt 0:00:00]} 52. fxe5+ {[%emt 0:00:41]} fxe5 {[%emt 0:00:00]} 53. Kc3 {[%emt 0:00:21]} e4 {[%emt 0:00:00] Hoping for ...e3.} 54. Nf1 {[%emt 0:00:15]} Ba2 {[%emt 0:00:00]} ({Not} 54... a4 55. Kb4 $17) 55. Nd2 $2 {[%emt 0:01:26]} (55. Ne3) 55... e3 {[%emt 0:00:00]} 56. Ne4+ {[%emt 0:00:13]} Kd5 {[%emt 0:00:00]} 57. Nf6+ {[%emt 0:00:09]} Ke6 {[%emt 0:00:00]} 58. Ne8 {[%emt 0:01:08]} Bd5 {[%emt 0:00:00] ( -> ...e2)} 59. Kd3 {[%emt 0:00:28]} a4 {[%emt 0:00:00] ( -> ...a3)} 60. Kxe3 {[%emt 0:00:33]} a3 {[%emt 0:00:00]} 61. Nc7+ {[%emt 0:00:24]} Kd6 {[%emt 0:00:00]} 62. Na6 {[%emt 0:00:33]} a2 {[%emt 0:00:00]} 0-1

[Event "98th Caplin Hastings Masters 2024-25"]
[Site "Hastings"]
[Date "2024.12.31"]
[Round "6.36"]
[White "Jacobs, Simon"]
[Black "Rayner, Francis"]
[Result "1/2-1/2"]
[ECO "C46"]
[WhiteElo "1873"]
[BlackElo "2013"]
[Annotator "NA RC"]
[PlyCount "22"]
[EventDate "2024.12.23"]
[EventType "swiss"]
[EventCountry "ENG"]
[SourceTitle "playchess.com"]
[Source "ChessBase"]
[SourceQuality "1"]
[TimeControl "5400+30"]

1. e4 {[%emt 0:00:04]} e5 {[%emt 0:00:25]} 2. Nf3 {[%emt 0:00:06]} Nc6 {[%emt 0:00:07]} 3. Nc3 {[%emt 0:00:05]} g6 {[%emt 0:00:36]} 4. d4 {[%emt 0:00:45]} exd4 {[%emt 0:00:10]} 5. Nxd4 {[%emt 0:00:08]} Bg7 {[%emt 0:00:37]} 6. Be3 {[%emt 0:06:26]} Nf6 {[%emt 0:00:20]} 7. Nxc6 {[%emt 0:01:25]} bxc6 {[%emt 0:05:46]} 8. e5 {[%emt 0:04:17]} Ng8 {[%emt 0:02:30]} 9. f4 {[%emt 0:01:17]} d6 {[%emt 0:00:38]} 10. Qf3 {[%emt 0:05:11]} Ne7 {[%emt 0:02:06]} 11. O-O-O {[%emt 0:01:04]} Be6 {[%emt 0:04:42]} 1/2-1/2